[Event "Gaprindashvili Cup Open II Stage 2020"]
[Site "Online"]
[Date "2020.11.08"]
[Round "7.6"]
[White "Adamia, Jaba"]
[Black "Nemsadze, Daviti"]
[Result "0-1"]
[ECO "E04"]
[WhiteElo "1899"]
[BlackElo "1690"]
[Annotator "NA RC"]
[PlyCount "123"]
[EventDate "2020.11.04"]
[EventType "swiss"]
[SourceTitle "playchess.com"]
[Source "ChessBase"]
[SourceQuality "1"]
[TimeControl "1500+5"]

1. d4 {[%emt 0:00:00]} Nf6 {[%emt 0:00:05]} 2. g3 {[%emt 0:00:20]} e6 {[%emt 0:00:13]} 3. c4 {[%emt 0:00:08]} d5 {[%emt 0:00:23]} 4. Nf3 {[%emt 0:00:11]} dxc4 {[%emt 0:00:43]} 5. Bg2 {[%emt 0:00:22]} c6 {[%emt 0:00:11]} 6. O-O {[%emt 0:00:53]} Nbd7 {[%emt 0:00:10]} 7. a4 {[%emt 0:01:49]} a5 {[%emt 0:01:25]} 8. Na3 {[%emt 0:01:12]} Bxa3 {[%emt 0:00:23]} 9. Rxa3 {[%emt 0:00:05]} O-O {[%emt 0:00:16]} 10. Bg5 {[%emt 0:01:09]} h6 {[%emt 0:00:11]} 11. Bf4 {[%emt 0:00:03]} b5 {[%emt 0:00:29]} 12. Bd6 {[%emt 0:02:08]} Re8 {[%emt 0:00:17]} 13. Ne5 {[%emt 0:00:16]} Nxe5 {[%emt 0:00:17]} 14. dxe5 {[%emt 0:00:10]} Nd5 {[%emt 0:00:08]} 15. axb5 {[%emt 0:00:27]} cxb5 {[%emt 0:00:17]} 16. Bxd5 {[%emt 0:00:09]} exd5 {[%emt 0:00:04]} 17. Qxd5 {[%emt 0:00:05]} Bh3 {[%emt 0:00:06]} 18. Rfa1 {[%emt 0:00:47]} Qb6 {[%emt 0:01:03]} 19. Bc5 {[%emt 0:03:14]} Qg6 {[%emt 0:00:35]} 20. Bd6 {[%emt 0:05:42]} Qc2 {[%emt 0:00:50]} 21. Qd1 {[%emt 0:00:32]} Qxd1+ {[%emt 0:00:51]} 22. Rxd1 {[%emt 0:00:03]} b4 {[%emt 0:00:09]} 23. Raa1 {[%emt 0:01:17]} Rec8 {[%emt 0:00:14]} 24. f3 {[%emt 0:02:28]} Be6 {[%emt 0:00:11]} 25. Kf2 {[%emt 0:00:43]} Kh7 {[%emt 0:00:12]} 26. Rdc1 {[%emt 0:00:18]} g6 {[%emt 0:00:16]} 27. Ke3 {[%emt 0:00:19]} c3 {[%emt 0:00:19]} 28. bxc3 {[%emt 0:00:02]} b3 {[%emt 0:00:04]} 29. Rab1 {[%emt 0:00:33]} a4 {[%emt 0:00:13]} 30. Ba3 {[%emt 0:00:04]} g5 {[%emt 0:00:10]} 31. Rb2 {[%emt 0:00:10]} Ra5 {[%emt 0:00:10]} 32. f4 {[%emt 0:00:05]} Rc4 {[%emt 0:00:05]} 33. Rd2 {[%emt 0:00:17]} Rb5 {[%emt 0:00:08]} 34. Bb2 {[%emt 0:00:35]} h5 {[%emt 0:00:14]} 35. Rd4 {[%emt 0:00:28]} a3 {[%emt 0:00:19]} 36. Bxa3 {[%emt 0:00:19]} b2 {[%emt 0:00:07]} 37. Rb1 {[%emt 0:00:17]} Rxc3+ {[%emt 0:00:08]} 38. Rd3 {[%emt 0:00:04]} Rc2 {[%emt 0:00:35]} 39. Rd2 {[%emt 0:00:12]} Rb3+ {[%emt 0:00:09]} 40. Rd3 {[%emt 0:00:02]} gxf4+ {[%emt 0:00:05]} 41. gxf4 {[%emt 0:00:04]} Rxe2+ {[%emt 0:00:45]} 42. Kxe2 {[%emt 0:00:08]} Bc4 {[%emt 0:00:03]} 43. Rxb2 {[%emt 0:00:17]} Bxd3+ {[%emt 0:00:06]} 44. Kf2 {[%emt 0:00:05]} Rxa3 {[%emt 0:00:04]} 45. Rb6 {[%emt 0:00:04]} h4 {[%emt 0:00:11]} 46. Rf6 {[%emt 0:00:04]} Kg7 {[%emt 0:00:10]} 47. Rd6 {[%emt 0:00:05]} Ra2+ {[%emt 0:00:08]} 48. Kg1 {[%emt 0:00:04]} Be4 {[%emt 0:00:07]} 49. Rd4 {[%emt 0:00:02]} Bf5 {[%emt 0:00:06]} 50. Rd6 {[%emt 0:00:08]} h3 {[%emt 0:00:05]} 51. Rd4 {[%emt 0:00:04]} Rg2+ {[%emt 0:00:11]} 52. Kh1 {[%emt 0:00:04]} Bg4 {[%emt 0:00:16]} 53. Rd3 {[%emt 0:00:07]} Bf5 {[%emt 0:00:09]} 54. Rg3+ {[%emt 0:00:02]} Rxg3 {[%emt 0:00:08]} 55. hxg3 {[%emt 0:00:02]} Be6 {[%emt 0:00:08]} 56. Kg1 {[%emt 0:00:10]} Kh6 {[%emt 0:00:05]} 57. Kf2 {[%emt 0:00:08]} Kh5 {[%emt 0:00:02]} 58. f5 {[%emt 0:00:08]} Bxf5 {[%emt 0:00:03]} 59. Kf3 {[%emt 0:00:01]} Be4+ {[%emt 0:00:04]} 60. Kf4 {[%emt 0:00:07]} h2 {[%emt 0:00:02]} 61. g4+ {[%emt 0:00:01]} Kh4 {[%emt 0:00:02]} 62. e6 {[%emt 0:00:02]} 0-1

[Event "Gaprindashvili Cup Open II Stage 2020"]
[Site "Online"]
[Date "2020.11.08"]
[Round "7.13"]
[White "Tsanatsqenishvili, Giorgi"]
[Black "Qalichava, Akaki"]
[Result "0-1"]
[ECO "B47"]
[WhiteElo "1631"]
[BlackElo "1877"]
[Annotator "NA RC"]
[PlyCount "70"]
[EventDate "2020.11.04"]
[EventType "swiss"]
[SourceTitle "playchess.com"]
[Source "ChessBase"]
[SourceQuality "1"]
[TimeControl "1500+5"]

1. e4 {[%emt 0:00:02]} c5 {[%emt 0:00:04]} 2. Nf3 {[%emt 0:00:02]} e6 {[%emt 0:00:03]} 3. d4 {[%emt 0:00:02]} cxd4 {[%emt 0:00:09]} 4. Nxd4 {[%emt 0:00:01]} a6 {[%emt 0:00:02]} 5. g3 {[%emt 0:00:02]} Qc7 {[%emt 0:00:19]} 6. Bg2 {[%emt 0:00:01]} Nc6 {[%emt 0:00:02]} 7. Nc3 {[%emt 0:00:03]} Nf6 {[%emt 0:00:04]} 8. O-O {[%emt 0:00:03]} h5 {[%emt 0:00:21]} 9. h3 {[%emt 0:00:03]} Nxd4 {[%emt 0:00:05]} 10. Qxd4 {[%emt 0:00:02]} Bc5 {[%emt 0:00:03]} 11. Qd3 {[%emt 0:00:10]} O-O {[%emt 0:00:38]} 12. Bf4 {[%emt 0:00:03]} d6 {[%emt 0:00:35]} 13. Rad1 {[%emt 0:00:36]} Ne8 {[%emt 0:01:55]} 14. a3 {[%emt 0:02:17]} Bd7 {[%emt 0:00:57]} 15. Qf3 {[%emt 0:01:45]} g6 {[%emt 0:07:19]} 16. Bh6 {[%emt 0:00:39]} Bc6 {[%emt 0:00:12]} 17. Bxf8 {[%emt 0:00:26]} Kxf8 {[%emt 0:00:04]} 18. g4 {[%emt 0:00:05]} hxg4 {[%emt 0:00:04]} 19. hxg4 {[%emt 0:00:08]} Qe7 {[%emt 0:00:36]} 20. Qf4 {[%emt 0:02:56]} g5 {[%emt 0:06:29]} 21. Qg3 {[%emt 0:01:41]} Kg7 {[%emt 0:00:47]} 22. Bf3 {[%emt 0:00:06]} Qf6 {[%emt 0:02:08]} 23. Kg2 {[%emt 0:00:13]} Nc7 {[%emt 0:00:10]} 24. Rd3 {[%emt 0:03:36]} e5 {[%emt 0:01:03]} 25. Rfd1 {[%emt 0:02:24]} Ne6 {[%emt 0:00:16]} 26. Kg1 {[%emt 0:02:29]} Nf4 {[%emt 0:01:08]} 27. R3d2 {[%emt 0:00:30]} Rh8 {[%emt 0:00:04]} 28. Bg2 {[%emt 0:00:11]} a5 {[%emt 0:01:34]} 29. Na2 {[%emt 0:01:08]} a4 {[%emt 0:00:03]} 30. Re1 {[%emt 0:00:26]} Rh4 {[%emt 0:00:03]} 31. Nb4 {[%emt 0:00:03]} Qe6 {[%emt 0:00:05]} 32. Kf1 {[%emt 0:01:11]} Rxg4 {[%emt 0:00:04]} 33. Bh3 {[%emt 0:01:19]} Nxh3 {[%emt 0:00:04]} 34. Qd3 {[%emt 0:00:08]} Rg1+ {[%emt 0:00:04]} 35. Ke2 {[%emt 0:00:03]} Nf4+ {[%emt 0:00:02]} 0-1

[Event "Gaprindashvili Cup Open II Stage 2020"]
[Site "Online"]
[Date "2020.11.08"]
[Round "7.14"]
[White "Safarov, Deniel"]
[Black "Kachkachishvili, Lasha"]
[Result "1-0"]
[ECO "B32"]
[WhiteElo "1720"]
[BlackElo "1681"]
[Annotator "NA RC"]
[PlyCount "103"]
[EventDate "2020.11.04"]
[EventType "swiss"]
[SourceTitle "playchess.com"]
[Source "ChessBase"]
[SourceQuality "1"]
[TimeControl "1500+5"]

1. e4 {[%emt 0:00:01]} c5 {[%emt 0:00:04]} 2. Nf3 {[%emt 0:00:03]} Nc6 {[%emt 0:00:01]} 3. d4 {[%emt 0:00:01]} cxd4 {[%emt 0:00:01]} 4. Nxd4 {[%emt 0:00:01]} e5 {[%emt 0:00:02]} 5. Nb5 {[%emt 0:00:02]} d6 {[%emt 0:00:04]} 6. N1c3 {[%emt 0:00:02]} a6 {[%emt 0:00:04]} 7. Na3 {[%emt 0:00:02]} Be6 {[%emt 0:00:01]} 8. Nc4 {[%emt 0:00:02]} b5 {[%emt 0:00:03]} 9. Ne3 {[%emt 0:00:01]} Nf6 {[%emt 0:00:01]} 10. Bd3 {[%emt 0:00:03]} g6 {[%emt 0:00:02]} 11. a4 {[%emt 0:00:12]} b4 {[%emt 0:00:05]} 12. Ncd5 {[%emt 0:01:14]} Bg7 {[%emt 0:00:05]} 13. O-O {[%emt 0:00:05]} O-O {[%emt 0:00:16]} 14. a5 {[%emt 0:01:32]} Bxd5 {[%emt 0:00:55]} 15. exd5 {[%emt 0:00:44]} Nxa5 {[%emt 0:01:12]} 16. Bd2 {[%emt 0:00:06]} Nb7 {[%emt 0:02:59]} 17. Bxb4 {[%emt 0:03:52]} a5 {[%emt 0:00:09]} 18. Bd2 {[%emt 0:00:19]} Nc5 {[%emt 0:00:26]} 19. Be2 {[%emt 0:00:03]} a4 {[%emt 0:01:28]} 20. Bb4 {[%emt 0:01:41]} Qb6 {[%emt 0:03:02]} 21. Ba3 {[%emt 0:00:08]} Nfd7 {[%emt 0:00:26]} 22. Nc4 {[%emt 0:02:25]} Qb8 {[%emt 0:00:25]} 23. Rb1 {[%emt 0:00:47]} f5 {[%emt 0:01:11]} 24. b4 {[%emt 0:00:18]} Ne4 {[%emt 0:02:39]} 25. Qe1 {[%emt 0:00:44]} Nb6 {[%emt 0:00:14]} 26. Na5 {[%emt 0:00:32]} Qc7 {[%emt 0:01:57]} 27. c4 {[%emt 0:00:27]} Nd7 {[%emt 0:01:55]} 28. Nc6 {[%emt 0:02:28]} Bh6 {[%emt 0:01:20]} 29. Rb2 {[%emt 0:00:53]} Nb8 {[%emt 0:01:11]} 30. b5 {[%emt 0:02:04]} Nd7 {[%emt 0:00:15]} 31. Bf3 {[%emt 0:01:07]} Nec5 {[%emt 0:00:22]} 32. b6 {[%emt 0:00:42]} Qb7 {[%emt 0:01:09]} 33. Rb5 {[%emt 0:00:33]} e4 {[%emt 0:00:24]} 34. Be2 {[%emt 0:00:10]} Bg7 {[%emt 0:00:37]} 35. Qb1 {[%emt 0:00:48]} f4 {[%emt 0:01:14]} 36. Bg4 {[%emt 0:00:45]} Ne5 {[%emt 0:01:12]} 37. Bxc5 {[%emt 0:00:06]} dxc5 {[%emt 0:00:06]} 38. Be6+ {[%emt 0:00:04]} Kh8 {[%emt 0:00:02]} 39. Qxe4 {[%emt 0:00:04]} Nd7 {[%emt 0:00:19]} 40. Bxd7 {[%emt 0:00:43]} Qxd7 {[%emt 0:00:02]} 41. b7 {[%emt 0:00:02]} Rae8 {[%emt 0:00:03]} 42. Qc2 {[%emt 0:00:04]} Qc7 {[%emt 0:00:12]} 43. Qxa4 {[%emt 0:00:20]} f3 {[%emt 0:00:01]} 44. b8=Q {[%emt 0:00:46]} Rxb8 {[%emt 0:00:03]} 45. Rxb8 {[%emt 0:00:03]} Rxb8 {[%emt 0:00:01]} 46. Nxb8 {[%emt 0:00:01]} Qxb8 {[%emt 0:00:02]} 47. gxf3 {[%emt 0:00:07]} Be5 {[%emt 0:00:03]} 48. Re1 {[%emt 0:00:04]} Bxh2+ {[%emt 0:00:03]} 49. Kg2 {[%emt 0:00:01]} Kg7 {[%emt 0:00:07]} 50. Qd7+ {[%emt 0:00:02]} Kf6 {[%emt 0:00:03]} 51. Re6+ {[%emt 0:00:21]} Kg5 {[%emt 0:00:02]} 52. Qe7+ {[%emt 0:00:08]} 1-0

[Event "Gaprindashvili Cup Open II Stage 2020"]
[Site "Online"]
[Date "2020.11.08"]
[Round "7.15"]
[White "Elashvili, Giorgi"]
[Black "Liponava, Zurab"]
[Result "1-0"]
[ECO "B28"]
[WhiteElo "1857"]
[BlackElo "1800"]
[Annotator "NA RC"]
[PlyCount "73"]
[EventDate "2020.11.04"]
[EventType "swiss"]
[SourceTitle "playchess.com"]
[Source "ChessBase"]
[SourceQuality "1"]
[TimeControl "1500+5"]

1. e4 {[%emt 0:02:02]} c5 {[%emt 0:00:06]} 2. Nf3 {[%emt 0:00:08]} a6 {[%emt 0:00:02]} 3. d4 {[%emt 0:00:19]} cxd4 {[%emt 0:00:03]} 4. Nxd4 {[%emt 0:00:01]} Nf6 {[%emt 0:00:03]} 5. Bd3 {[%emt 0:00:23]} e5 {[%emt 0:00:05]} 6. Nf3 {[%emt 0:00:14]} d5 {[%emt 0:00:05]} 7. exd5 {[%emt 0:03:34]} e4 {[%emt 0:01:39]} 8. Qe2 {[%emt 0:00:06]} Qxd5 {[%emt 0:01:52]} 9. Ng5 {[%emt 0:01:05]} Bb4+ {[%emt 0:01:14]} 10. Nc3 {[%emt 0:00:27]} O-O {[%emt 0:01:47]} 11. Ngxe4 {[%emt 0:01:41]} Bxc3+ {[%emt 0:05:23]} 12. bxc3 {[%emt 0:00:11]} Nxe4 {[%emt 0:01:32]} 13. Bxe4 {[%emt 0:00:04]} Qc5 {[%emt 0:00:13]} 14. O-O {[%emt 0:00:08]} Nc6 {[%emt 0:00:16]} 15. Rb1 {[%emt 0:00:52]} Na5 {[%emt 0:03:49]} 16. Be3 {[%emt 0:00:57]} Qxc3 {[%emt 0:00:32]} 17. Bd2 {[%emt 0:01:24]} Qc7 {[%emt 0:00:51]} 18. Bb4 {[%emt 0:02:02]} Be6 {[%emt 0:01:52]} 19. Bxf8 {[%emt 0:01:53]} Rxf8 {[%emt 0:00:07]} 20. a4 {[%emt 0:01:33]} g6 {[%emt 0:00:32]} 21. Qf3 {[%emt 0:01:21]} b6 {[%emt 0:00:29]} 22. Bd5 {[%emt 0:01:01]} Bf5 {[%emt 0:00:12]} 23. Rb2 {[%emt 0:00:45]} Re8 {[%emt 0:00:55]} 24. Rfb1 {[%emt 0:01:26]} h5 {[%emt 0:01:45]} 25. g3 {[%emt 0:00:38]} Bg4 {[%emt 0:00:12]} 26. Qf6 {[%emt 0:00:31]} Bf5 {[%emt 0:00:31]} 27. Qxb6 {[%emt 0:00:52]} Qc3 {[%emt 0:00:25]} 28. Qb4 {[%emt 0:00:35]} Qxb4 {[%emt 0:00:15]} 29. Rxb4 {[%emt 0:00:02]} Bxc2 {[%emt 0:00:02]} 30. Rc1 {[%emt 0:00:05]} Bd3 {[%emt 0:00:04]} 31. h4 {[%emt 0:00:21]} Re5 {[%emt 0:00:12]} 32. Rc5 {[%emt 0:00:12]} Nc6 {[%emt 0:00:03]} 33. Bxf7+ {[%emt 0:00:13]} Kxf7 {[%emt 0:00:03]} 34. Rxc6 {[%emt 0:00:01]} Re1+ {[%emt 0:00:03]} 35. Kh2 {[%emt 0:00:06]} Be4 {[%emt 0:00:03]} 36. Rb7+ {[%emt 0:00:10]} Ke8 {[%emt 0:00:23]} 37. Rc8# {[%emt 0:00:02]} 1-0

[Event "Gaprindashvili Cup Open II Stage 2020"]
[Site "Online"]
[Date "2020.11.08"]
[Round "7.16"]
[White "Gogolashvili, Giorgi"]
[Black "Tsereteli, Tornike"]
[Result "0-1"]
[ECO "B02"]
[WhiteElo "1448"]
[BlackElo "1765"]
[Annotator "NA RC"]
[PlyCount "90"]
[EventDate "2020.11.04"]
[EventType "swiss"]
[SourceTitle "playchess.com"]
[Source "ChessBase"]
[SourceQuality "1"]
[TimeControl "1500+5"]

1. e4 {[%emt 0:00:05]} Nf6 {[%emt 0:00:04]} 2. Nc3 {[%emt 0:00:03]} d5 {[%emt 0:00:03]} 3. exd5 {[%emt 0:00:06]} Nxd5 {[%emt 0:00:02]} 4. Bc4 {[%emt 0:00:01]} c6 {[%emt 0:00:04]} 5. d4 {[%emt 0:00:04]} Bf5 {[%emt 0:00:25]} 6. Nf3 {[%emt 0:00:03]} e6 {[%emt 0:00:06]} 7. O-O {[%emt 0:00:03]} Be7 {[%emt 0:00:16]} 8. Qe2 {[%emt 0:00:25]} O-O {[%emt 0:00:14]} 9. h3 {[%emt 0:00:22]} Bf6 {[%emt 0:00:15]} 10. Ne5 {[%emt 0:00:31]} Nb4 {[%emt 0:00:32]} 11. Be3 {[%emt 0:01:36]} Nxc2 {[%emt 0:00:50]} 12. Rad1 {[%emt 0:00:11]} Nxe3 {[%emt 0:00:05]} 13. fxe3 {[%emt 0:00:07]} Bxe5 {[%emt 0:00:03]} 14. dxe5 {[%emt 0:00:02]} Qc7 {[%emt 0:00:02]} 15. e4 {[%emt 0:00:11]} Bg6 {[%emt 0:00:04]} 16. Rd6 {[%emt 0:02:29]} Nd7 {[%emt 0:00:17]} 17. Rdd1 {[%emt 0:04:38]} Nxe5 {[%emt 0:00:17]} 18. Bb3 {[%emt 0:00:12]} Rad8 {[%emt 0:00:10]} 19. h4 {[%emt 0:00:18]} h5 {[%emt 0:00:06]} 20. g3 {[%emt 0:05:57]} Ng4 {[%emt 0:00:30]} 21. Qf3 {[%emt 0:00:58]} Rxd1 {[%emt 0:02:08]} 22. Nxd1 {[%emt 0:00:34]} Qe5 {[%emt 0:00:17]} 23. Nc3 {[%emt 0:00:42]} Rd8 {[%emt 0:00:40]} 24. Qf4 {[%emt 0:00:30]} Rd3 {[%emt 0:02:13]} 25. Qxe5 {[%emt 0:00:49]} Nxe5 {[%emt 0:00:03]} 26. Kg2 {[%emt 0:00:02]} Rd2+ {[%emt 0:00:10]} 27. Rf2 {[%emt 0:00:03]} Rxf2+ {[%emt 0:00:27]} 28. Kxf2 {[%emt 0:00:02]} Kf8 {[%emt 0:00:01]} 29. Ke3 {[%emt 0:00:15]} Ke7 {[%emt 0:00:08]} 30. Ne2 {[%emt 0:00:02]} Ng4+ {[%emt 0:00:23]} 31. Kf4 {[%emt 0:00:03]} e5+ {[%emt 0:00:27]} 32. Kf3 {[%emt 0:00:02]} f5 {[%emt 0:00:22]} 33. exf5 {[%emt 0:00:09]} Bxf5 {[%emt 0:00:02]} 34. Nc3 {[%emt 0:00:01]} Nf6 {[%emt 0:00:20]} 35. Ke3 {[%emt 0:00:10]} Kd6 {[%emt 0:00:07]} 36. Ne2 {[%emt 0:00:18]} Nd5+ {[%emt 0:00:09]} 37. Bxd5 {[%emt 0:00:09]} cxd5 {[%emt 0:00:03]} 38. b4 {[%emt 0:00:17]} d4+ {[%emt 0:00:07]} 39. Kd2 {[%emt 0:00:01]} Kd5 {[%emt 0:00:04]} 40. Nc1 {[%emt 0:00:05]} Kc4 {[%emt 0:00:06]} 41. a3 {[%emt 0:00:09]} e4 {[%emt 0:00:02]} 42. b5 {[%emt 0:00:06]} e3+ {[%emt 0:00:10]} 43. Ke2 {[%emt 0:00:02]} Bg4+ {[%emt 0:00:03]} 44. Ke1 {[%emt 0:00:05]} d3 {[%emt 0:00:02]} 45. Nxd3 {[%emt 0:00:10]} Kxd3 {[%emt 0:00:01]} 0-1

[Event "Gaprindashvili Cup Open II Stage 2020"]
[Site "Online"]
[Date "2020.11.08"]
[Round "7.18"]
[White "Chanturia, Lasha"]
[Black "Kupatadze, Tornike"]
[Result "0-1"]
[ECO "C01"]
[WhiteElo "1761"]
[BlackElo "1657"]
[Annotator "NA RC"]
[PlyCount "126"]
[EventDate "2020.11.04"]
[EventType "swiss"]
[SourceTitle "playchess.com"]
[Source "ChessBase"]
[SourceQuality "1"]
[TimeControl "1500+5"]

1. e4 {[%emt 0:05:14]} e6 {[%emt 0:00:08]} 2. d4 {[%emt 0:00:06]} d5 {[%emt 0:00:06]} 3. exd5 {[%emt 0:00:01]} exd5 {[%emt 0:00:02]} 4. Nf3 {[%emt 0:00:02]} Bd6 {[%emt 0:00:05]} 5. Be3 {[%emt 0:00:03]} Nf6 {[%emt 0:00:06]} 6. Nc3 {[%emt 0:00:03]} Nc6 {[%emt 0:00:12]} 7. Bd3 {[%emt 0:00:11]} Bg4 {[%emt 0:00:08]} 8. h3 {[%emt 0:00:02]} Bh5 {[%emt 0:00:09]} 9. g4 {[%emt 0:00:04]} Bg6 {[%emt 0:00:08]} 10. Bxg6 {[%emt 0:00:13]} hxg6 {[%emt 0:00:13]} 11. Qe2 {[%emt 0:00:03]} Be7 {[%emt 0:01:30]} 12. O-O-O {[%emt 0:00:03]} Qd7 {[%emt 0:00:10]} 13. Ne5 {[%emt 0:00:04]} Qe6 {[%emt 0:00:46]} 14. Nb5 {[%emt 0:01:00]} Bd6 {[%emt 0:01:34]} 15. Nxc6 {[%emt 0:00:13]} bxc6 {[%emt 0:00:04]} 16. Nxd6+ {[%emt 0:00:03]} cxd6 {[%emt 0:00:05]} 17. Qa6 {[%emt 0:00:34]} Qd7 {[%emt 0:00:15]} 18. f3 {[%emt 0:00:09]} O-O {[%emt 0:01:05]} 19. h4 {[%emt 0:00:07]} Rab8 {[%emt 0:00:40]} 20. b3 {[%emt 0:00:41]} Rb5 {[%emt 0:00:57]} 21. h5 {[%emt 0:00:40]} gxh5 {[%emt 0:00:10]} 22. gxh5 {[%emt 0:00:16]} Qf5 {[%emt 0:00:11]} 23. Rdf1 {[%emt 0:01:18]} Re8 {[%emt 0:00:36]} 24. Bd2 {[%emt 0:00:24]} Nxh5 {[%emt 0:02:10]} 25. Rhg1 {[%emt 0:00:42]} Nf4 {[%emt 0:00:26]} 26. Rg4 {[%emt 0:00:55]} Ng6 {[%emt 0:02:17]} 27. Qxc6 {[%emt 0:03:12]} Rc8 {[%emt 0:01:08]} 28. Rg5 {[%emt 0:00:08]} Rxc6 {[%emt 0:00:04]} 29. Rxf5 {[%emt 0:00:04]} Ne7 {[%emt 0:00:17]} 30. Rg5 {[%emt 0:00:13]} g6 {[%emt 0:00:27]} 31. Rfg1 {[%emt 0:00:30]} Rb8 {[%emt 0:00:30]} 32. Kb2 {[%emt 0:00:11]} Rbc8 {[%emt 0:01:29]} 33. c3 {[%emt 0:00:08]} Kg7 {[%emt 0:00:04]} 34. R5g2 {[%emt 0:00:27]} Nf5 {[%emt 0:00:19]} 35. Rh1 {[%emt 0:00:15]} Rh8 {[%emt 0:00:10]} 36. Rgh2 {[%emt 0:00:25]} Rxh2 {[%emt 0:00:12]} 37. Rxh2 {[%emt 0:00:06]} Rc8 {[%emt 0:00:02]} 38. Kc2 {[%emt 0:00:24]} Nxd4+ {[%emt 0:00:05]} 39. Kd3 {[%emt 0:00:56]} Nxf3 {[%emt 0:00:08]} 40. Bh6+ {[%emt 0:00:14]} Kg8 {[%emt 0:00:30]} 41. Rh3 {[%emt 0:00:31]} Ne5+ {[%emt 0:01:13]} 42. Kd4 {[%emt 0:00:06]} f6 {[%emt 0:03:23]} 43. Kxd5 {[%emt 0:01:05]} g5 {[%emt 0:00:15]} 44. Kxd6 {[%emt 0:00:11]} Kf7 {[%emt 0:00:03]} 45. c4 {[%emt 0:02:22]} Kg6 {[%emt 0:00:05]} 46. c5 {[%emt 0:01:14]} Nf7+ {[%emt 0:00:15]} 47. Kd7 {[%emt 0:00:04]} Rh8 {[%emt 0:00:15]} 48. c6 {[%emt 0:00:05]} Ne5+ {[%emt 0:00:28]} 49. Kd6 {[%emt 0:00:21]} Nxc6 {[%emt 0:00:08]} 50. Kxc6 {[%emt 0:00:52]} Rxh6 {[%emt 0:00:04]} 51. Rg3 {[%emt 0:00:11]} f5 {[%emt 0:00:10]} 52. b4 {[%emt 0:00:10]} f4 {[%emt 0:00:04]} 53. Rg1 {[%emt 0:00:04]} g4 {[%emt 0:00:09]} 54. Kb7 {[%emt 0:00:16]} Rh7+ {[%emt 0:00:03]} 55. Ka6 {[%emt 0:00:02]} g3 {[%emt 0:00:16]} 56. b5 {[%emt 0:00:08]} Kf5 {[%emt 0:00:06]} 57. a4 {[%emt 0:00:05]} Kg4 {[%emt 0:00:10]} 58. Rc1 {[%emt 0:00:15]} g2 {[%emt 0:00:08]} 59. a5 {[%emt 0:00:18]} f3 {[%emt 0:00:56]} 60. Rc4+ {[%emt 0:00:57]} Kg3 {[%emt 0:00:07]} 61. Rc1 {[%emt 0:00:13]} f2 {[%emt 0:00:07]} 62. Rd1 {[%emt 0:00:04]} g1=Q {[%emt 0:00:08]} 63. Rd3+ {[%emt 0:00:05]} Kg2 {[%emt 0:00:10]} 0-1

[Event "Gaprindashvili Cup Open II Stage 2020"]
[Site "Online"]
[Date "2020.11.08"]
[Round "8.10"]
[White "Qalichava, Akaki"]
[Black "Adamia, Jaba"]
[Result "1-0"]
[ECO "B42"]
[WhiteElo "1877"]
[BlackElo "1899"]
[Annotator "NA"]
[PlyCount "131"]
[EventDate "2020.11.04"]
[EventType "swiss"]
[SourceTitle "playchess.com"]
[Source "ChessBase"]
[SourceQuality "1"]
[TimeControl "1500+5"]

1. e4 {[%emt 0:00:03]} c5 {[%emt 0:00:03]} 2. Nf3 {[%emt 0:00:03]} e6 {[%emt 0:00:05]} 3. d4 {[%emt 0:00:12]} cxd4 {[%emt 0:00:10]} 4. Nxd4 {[%emt 0:00:03]} a6 {[%emt 0:00:02]} 5. Bd3 {[%emt 0:00:02]} Nf6 {[%emt 0:00:23]} 6. O-O {[%emt 0:00:05]} Qc7 {[%emt 0:00:07]} 7. Qe2 {[%emt 0:00:05]} d6 {[%emt 0:00:16]} 8. c4 {[%emt 0:00:08]} g6 {[%emt 0:00:14]} 9. Nc3 {[%emt 0:00:17]} Bg7 {[%emt 0:00:05]} 10. Be3 {[%emt 0:00:04]} O-O {[%emt 0:00:09]} 11. h3 {[%emt 0:00:07]} Nbd7 {[%emt 0:00:08]} 12. Rac1 {[%emt 0:00:07]} b6 {[%emt 0:00:08]} 13. b3 {[%emt 0:00:07]} Bb7 {[%emt 0:00:04]} 14. Bb1 {[%emt 0:00:21]} Nc5 {[%emt 0:00:27]} 15. f3 {[%emt 0:00:03]} Rac8 {[%emt 0:01:38]} 16. Rfd1 {[%emt 0:00:07]} Rfd8 {[%emt 0:00:24]} 17. Qf2 {[%emt 0:00:07]} Ncd7 {[%emt 0:00:36]} 18. Nde2 {[%emt 0:00:08]} Ba8 {[%emt 0:00:48]} 19. Nf4 {[%emt 0:02:13]} Rb8 {[%emt 0:00:55]} 20. Bd3 {[%emt 0:00:07]} Ne5 {[%emt 0:00:14]} 21. Bf1 {[%emt 0:00:04]} Qb7 {[%emt 0:02:01]} 22. Na4 {[%emt 0:02:53]} b5 {[%emt 0:04:15]} 23. cxb5 {[%emt 0:00:03]} axb5 {[%emt 0:00:05]} 24. Nb6 {[%emt 0:00:05]} d5 {[%emt 0:01:15]} 25. exd5 {[%emt 0:01:09]} Nxd5 {[%emt 0:01:25]} 26. Nfxd5 {[%emt 0:00:02]} exd5 {[%emt 0:00:05]} 27. Nxa8 {[%emt 0:01:01]} Rxa8 {[%emt 0:01:41]} 28. Rc5 {[%emt 0:00:28]} d4 {[%emt 0:05:28]} 29. Rxd4 {[%emt 0:02:27]} Nxf3+ {[%emt 0:01:29]} 30. gxf3 {[%emt 0:00:03]} Bxd4 {[%emt 0:00:03]} 31. Bxd4 {[%emt 0:00:02]} Rd5 {[%emt 0:00:32]} 32. Rxd5 {[%emt 0:02:27]} Qxd5 {[%emt 0:00:03]} 33. Be3 {[%emt 0:00:13]} Re8 {[%emt 0:00:28]} 34. Qd2 {[%emt 0:00:23]} Qxf3 {[%emt 0:00:16]} 35. Bf2 {[%emt 0:00:15]} Qf5 {[%emt 0:00:18]} 36. a4 {[%emt 0:01:06]} bxa4 {[%emt 0:00:23]} 37. bxa4 {[%emt 0:00:02]} Ra8 {[%emt 0:00:17]} 38. Qd4 {[%emt 0:00:17]} h5 {[%emt 0:00:23]} 39. Bg2 {[%emt 0:00:13]} Rc8 {[%emt 0:00:11]} 40. Kh2 {[%emt 0:01:59]} Kh7 {[%emt 0:00:05]} 41. Bg3 {[%emt 0:00:12]} Rc2 {[%emt 0:00:08]} 42. Qe3 {[%emt 0:01:23]} Ra2 {[%emt 0:00:10]} 43. Qb3 {[%emt 0:00:10]} Re2 {[%emt 0:00:14]} 44. Kh1 {[%emt 0:00:42]} Qf6 {[%emt 0:00:19]} 45. Qf3 {[%emt 0:00:18]} Qa1+ {[%emt 0:00:05]} 46. Kh2 {[%emt 0:00:06]} Qa2 {[%emt 0:00:02]} 47. a5 {[%emt 0:00:29]} Re7 {[%emt 0:00:10]} 48. Qd5 {[%emt 0:00:30]} Qa4 {[%emt 0:00:06]} 49. Qd6 {[%emt 0:00:34]} Re6 {[%emt 0:00:07]} 50. Qf8 {[%emt 0:00:24]} Qd7 {[%emt 0:00:02]} 51. Qa3 {[%emt 0:00:32]} Re2 {[%emt 0:00:05]} 52. Qf3 {[%emt 0:01:03]} Ra2 {[%emt 0:00:02]} 53. Be1 {[%emt 0:00:08]} Qc7+ {[%emt 0:00:05]} 54. Qg3 {[%emt 0:00:07]} Qxg3+ {[%emt 0:00:04]} 55. Kxg3 {[%emt 0:00:04]} g5 {[%emt 0:00:04]} 56. Bb7 {[%emt 0:00:08]} Ra3+ {[%emt 0:00:03]} 57. Kg2 {[%emt 0:00:06]} g4 {[%emt 0:00:04]} 58. hxg4 {[%emt 0:00:08]} hxg4 {[%emt 0:00:01]} 59. a6 {[%emt 0:00:02]} f5 {[%emt 0:00:02]} 60. Bf2 {[%emt 0:00:14]} f4 {[%emt 0:00:02]} 61. a7 {[%emt 0:00:04]} g3 {[%emt 0:00:08]} 62. Bc5 {[%emt 0:00:15]} Ra2+ {[%emt 0:00:12]} 63. Kh3 {[%emt 0:00:06]} Rh2+ {[%emt 0:00:13]} 64. Kg4 {[%emt 0:00:03]} Ra2 {[%emt 0:00:06]} 65. Be4+ {[%emt 0:00:03]} Kh6 {[%emt 0:00:03]} 66. Bf8# {[%emt 0:00:03]} 1-0